Cogmind - Beta 14 @@@ ROGUE MODE // 2025.03.07 @ 20:10:51 Player: w0rldd3str0y3r Result: Destroyed by as-17614 with Assembled Maul Performance ------------- Evolutions (0) 0 Regions Visited (0) 0 Robots Destroyed (3) 15 Value Destroyed (14) 14 Prototype IDs (0) 0 Alien Tech Used (0) 0 Bonus (0) 0 TOTAL SCORE: 29 Bonus ------- None Cogmind --------- Core Integrity 0/250 Matter 290/300 Energy 74/100 System Corruption 0% Temperature Cool (10) Movement Core (50) Location -11/Scrapyard Parts ------- > --- POWER (1) -------- (None) > --- PROPULSION (2) --- Light Treads Compact Wheel > --- UTILITY (2) ------ (None) > --- WEAPON (2) ------- Small Laser > --- INVENTORY (5) ---- Ion Engine Aluminum Leg Mining Laser Peak State ------------ > --- POWER ------------ Light Ion Engine > --- PROPULSION ------- Light Treads Light Treads > --- UTILITY ---------- Small Storage Unit Medium Matter Pod > --- WEAPON ----------- Light Assault Rifle Light Assault Rifle > --- INVENTORY -------- Ion Engine Aluminum Leg Aluminum Leg Wheel Compact Wheel Small Laser [Rating: 7] Favorites ----------- Power Light Ion Engine Engine Light Ion Engine Propulsion Light Treads Treads Light Treads Leg Aluminum Leg Wheel Wheel Utility Small Storage Unit Storage Small Storage Unit Weapon Light Assault Rifle Energy Gun Small Laser Ballistic Gun Light Assault Rifle Special Weapon Mining Laser Build | -11 ------- Run | Yrd Slots Evolved . | . Power . | . Propulsion . | . Utility . | . Weapon . | . Parts Attached 19 | 19 Power 3 | 3 Engine 3 | 3 Core . | . Reactor . | . Propulsion 8 | 8 Treads 4 | 4 Leg 1 | 1 Wheel 3 | 3 Hover . | . Flight . | . Utility 2 | 2 Device . | . Storage 2 | 2 Processor . | . Hackware . | . Protection . | . Artifact . | . Weapon 6 | 6 Energy Gun 3 | 3 Energy Cannon . | . Ballistic Gun 2 | 2 Ballistic Cannon . | . Launcher . | . Special Weapon 1 | 1 Impact Weapon . | . Slashing Weapon . | . Piercing Weapon . | . Special Melee Weapon . | . Unidentified Prototypes . | . Parts Lost 4 | 4 Power 1 | 1 Propulsion 2 | 2 Utility . | . Weapon 1 | 1 Highest Loss Streak 2 | 2 To Critical Strikes . | . Average Slot Usage (%) . | . Peak Build Rating 7 | 7 Average Rating 6 | 6 On Entrance . | . Naked Turns . | . Heaviest Build 12 | 12 Greatest Support 40 | 40 Greatest Overweight (x) 1 | 1 Average Overweight (x) . | . Largest Inventory Capacity 8 | 8 Average Capacity 7 | 7 Most Carried 7 | 7 Average Carried 6 | 6 Final Capacity 5 | 5 Final Carried 3 | 3 Class Distribution -------------------- None Dominant Class ---------------- None Resources | -11 ----------- Run | Yrd Matter Collected 382 | 382 Remotely . | . Salvage Created 138 | 138 Parts 4 | 4 Haulers Intercepted . | . Recyclers Shooed 1 | 1 Parts Field Recycled . | . Retrieved Matter . | . Parts Self-Destructed . | . Prevented . | . Kills | -11 ------- Run | Yrd Combat Hostiles Destroyed 4 | 4 Guns 4 | 4 Classes Destroyed 4 | 4 Worker 1 | 1 Tunneler 1 | 1 Recycler 1 | 1 Assembled 4 | 4 Best Kill Streak 4 | 4 Combat Bots Only 4 | 4 Max Kills in Single Turn 1 | 1 Gunslinging . | . Exploded . | . Melee . | . Uniques/NPCs Destroyed . | . Combat | -11 -------- Run | Yrd Hostile Shots Fired 66 | 66 Missed 19 | 19 Damage Taken 919 | 919 Core 267 | 267 Absorbed by Shields . | . Core Remaining (%) . | . Volleys Fired 48 | 48 Largest 2 | 2 Hottest 100 | 100 Shots Fired 61 | 61 Gun 49 | 49 Cannon . | . Launcher . | . Special 12 | 12 Kinetic 26 | 26 Thermal 35 | 35 Explosive . | . Electromagnetic . | . Robot Hit Streak 7 | 7 Robot Miss Streak 2 | 2 Penetration Max . | . Secondary Targets . | . Shots Hit Robots 24 | 24 Core Hits 11 | 11 Critical Kills . | . Critical Parts Destroyed . | . Critical Strikes . | . Melee Attacks . | . Impact . | . Slashing . | . Piercing . | . Sneak Attacks . | . Combat Hostiles . | . Follow-up Attacks . | . Damage Inflicted 267 | 267 Guns 255 | 255 Cannons . | . Explosions . | . Melee . | . Ramming 12 | 12 Kinetic 97 | 97 Thermal 158 | 158 Explosive . | . Electromagnetic . | . Impact . | . Slashing . | . Piercing . | . Highest Corruption . | . Average Corruption . | . Corruption Purged . | . Corruption Blocked . | . Overload Shots . | . Overflow Damage . | . Projectiles . | . Explosions . | . Melee . | . Knockbacks . | . Impact . | . Kinetic . | . Secondary . | . Self-Inflicted Damage . | . Shots . | . Rammed 3 | 3 Targets Rammed 5 | 5 Kicked . | . Crushed 2 | 2 Highest Temperature 40 | 40 Average Temperature 20 | 20 Received Heat Transfer 140 | 140 Siege Activations . | . Robots Corrupted . | . Combat Hostiles . | . Parts Fried . | . Impact Corruptions . | . Robots Melted . | . Combat Hostiles . | . Parts Melted . | . Heat Transferred 375 | 375 Parts Sabotaged . | . Parts Stolen . | . Parts Stripped . | . Power Chain Reactions . | . Alert | -11 ------- Run | Yrd Peak Influence 42 | 42 Initial . | . Average 2 | 2 Maximum Alert Level . | . Low Security (%) 100 | 100 Level 1 . | . Level 2 . | . Level 3 . | . Level 4 . | . Level 5 . | . High Security . | . Max Security . | . Squads Dispatched . | . Investigation . | . Extermination . | . Reinforcement . | . Assault . | . Garrison . | . Intercept . | . Searches Triggered . | . Construction Impeded . | . Haulers Reinforced . | . Active Scanning Responses . | . Cargo Convoy Interrupts . | . Stealth | -11 --------- Run | Yrd Distress Signals . | . Communications Jammed . | . Distress Signals . | . Times Spotted 35 | 35 Peak Tracking Total 20 | 20 Tactical Retreats 8 | 8 Traps | -11 ------- Run | Yrd Traps Triggered . | . Indirectly . | . Trap Hack Attempts . | . Triggered . | . Disarmed . | . Reprogrammed . | . Reused . | . Traps Extracted . | . Installed . | . Triggered . | . Machines | -11 ---------- Run | Yrd Machines Disabled . | . Max in Single Turn . | . Machines Repaired . | . Machines Dismantled . | . Machines Sabotaged . | . Overloaded Fab Kills . | . Hacking | -11 --------- Run | Yrd Machines Accessed . | . Terminals . | . Fabricators . | . Repair Stations . | . Recycling Units . | . Scanalyzers . | . Garrison Access . | . Total Hacks . | . Successful . | . Failed . | . Catastrophic . | . Database Lockouts . | . Manual . | . Terminals . | . Fabricators . | . Repair Stations . | . Recycling Units . | . Scanalyzers . | . Garrison Access . | . Terminal Hacks . | . Fabricator Hacks . | . Repair Station Hacks . | . Recycling Unit Hacks . | . Scanalyzer . | . Garrison Access Hacks . | . Unauthorized Hacks . | . Terminals . | . Fabricators . | . Repair Stations . | . Recycling Units . | . Scanalyzers . | . Garrison Access . | . Data Cores Recovered . | . Used . | . Hacking Detections . | . Full Trace Events . | . Feedback Events . | . Feedback Blocked . | . Robot Schematics Acquired . | . Robots Built . | . Authchips . | . Time . | . Total Robot Build Rating . | . Part Schematics Acquired . | . Parts Built . | . Authchips . | . Time . | . Total Part Build Rating . | . Parts Repaired . | . Time . | . Parts Recycled . | . Recycled Matter . | . Retrieved Matter . | . Retrieved Components . | . Parts Scanalyzed . | . Part Schematics Acquired . | . Parts Damaged . | . Bothacking | -11 ------------ Run | Yrd Used RIF Installer . | . Robots Hacked . | . Non-combat . | . Combat . | . Robot Hacks Applied . | . Relay Couplers Released . | . Fabnet Peak Effective % . | . Robots Rewired . | . Allies Hacked . | . Hacks Repelled . | . Allies | -11 -------- Run | Yrd Total Allies . | . Largest Group . | . Highest-Rated Group . | . Highest-Rated Ally . | . Total Orders . | . Ally Attacks . | . Total Damage . | . Kills . | . Allies Corrupted . | . Allies Melted . | . Intel | -11 ------- Run | Yrd Robot Analysis Total . | . Derelict Logs Recovered . | . Drone Launches . | . Drone Recoveries . | . Exploration | -11 ------------- Run | Yrd Turns Passed 6056 | 6056 Spaces Moved 2042 | 2042 Core 913 | 913 Treads 635 | 635 Legs . | . Wheels 494 | 494 Hover . | . Flight . | . Fastest Speed 50 | 50 Average Speed 91 | 91 Slowest Speed 160 | 160 Overloaded Moves . | . Propulsion Burnouts . | . Robots Hopped . | . Cave-ins Triggered . | . Exploration Rate (%) 115 | 115 Regions Visited . Branch Regions . Pre-discovered Areas . | . Known Exits Taken . | . Unknown Exits Taken . | . Scrap Searched . | . Spaces Dug 12 | 12 Terrain Destroyed 12 | 12 Melee . | . Projectile 12 | 12 AOE . | . Terrain Rammed . | . Walls Destroyed . | . Machines Disabled . | . Actions | -11 --------- Run | Yrd Total 6143 | 6143 Wait 4015 | 4015 Move 2042 | 2042 Hop . | . Pick Up 10 | 10 Fast Attach 8 | 8 Attach 7 | 7 Detach 3 | 3 Swap 4 | 4 Drop 1 | 1 Fire 48 | 48 Melee . | . Ram . | . Kick . | . Crush 5 | 5 Escape Stasis . | . Rewire . | . Trap . | . Miscellaneous . | . Route ------- -11/Scrapyard (discovered 1 exit: [*Mat]) History --------- Turn | Location | Event 4 | -11/Scrapyard | Discovered new exit (range 16) 5388 | -11/Scrapyard | Assembled infested the area 5424 | -11/Scrapyard | Core integrity fell below 50% 5425 | -11/Scrapyard | Released all parts (5) 5780 | -11/Scrapyard | Core integrity fell below 20% 6057 | -11/Scrapyard | Destroyed by as-17614 with Assembled Maul Last Messages --------------- 05427_ The unstable cave ceiling collapses. 05575_ Acquired Lgt. Ion Engine. 05577_ Acquired 10 matter. 05758_ Acquired 19 matter. 05770_ Acquired 7 matter. 05773_ Extracted 2 matter. 05775_ Acquired Lgt. Treads. 05775_ Lgt. Ion Engine destroyed. 05783_ Acquired 7 matter. 05803_ as-26803 destroyed. 05811_ as-49240 destroyed. 05812_ Acquired 10 matter. 05827_ Lgt. Treads destroyed. 05828_ as-03386 destroyed. 05846_ as-13191 destroyed. 05855_ Acquired Mining Laser. 05932_ Dropped Aluminum Leg. 05942_ Acquired Aluminum Leg. 06038_ Acquired 24 matter. 06039_ Extracted 6 matter. Map ----- +----------------------------------------------------+ | | | ??????????????????????????????????? | | ??????????????????????????????????? | | ??????????????????????????????????? | | ??????????????????????????????????? | | ??????????????????????????????????? | | ?????????????????????????#####?##?? | | ????????????????????????## "## ##? | | ????????????????????????# " #? | | ????????????????????????# " #? | | ????????????????????????# " #? | | ????????????????????????## " #? | | ?????????????????????????# " #? | | ??????????######?????????# ###? | | ??????????# #############%%##??? | | ??????????# # # # ##???? | | ########### # #%!#???? | | # # # # #% #???? | | # # # #???? | | # # # # # #???? | | # # # # # #???? | | # ####### # %#???? | | # # a# #?????####### #???? | | ######## ######???????????# #???? | | ??????# a################# #?### | | ??????# @ ! ### | | ??????# ## # | | ??????# ####### ######### | | ????#### #####?# #????## | | ????# #?# #?????##### | | ????# #?# #?????????## | | ????# #?# #??????????# | | ????# ### ###????????## | | ????# #?????????# | | ????# ###########?????????? | | ????# ##???????????????????? | | ????# #????????????????????? | | ????# #????????????????????? | | ????###### #????????????????????? | | ?????????# ##????????????????????? | | ?????????####?????????????????????? | | ??????????????????????????????????? | | ??????????????????????????????????? | | ??????????????????????????????????? | | ??????????????????????????????????? | | ??????????????????????????????????? | | ???????????????????##########?????? | | ???????????????????# ###???? | | ???????????????????# # #???? | | ??????????#####???## # ####? | +----------------------------------------------------+ Best States ------------- Heat Dissipation 25 Energy Generation 10 Energy Capacity 250 Matter Stores 314 Matter Capacity 400 Sight Range 16 Terrain Scan Density 10 Evasion (%) 50 Recoil Reduction 2 Item Schematics ----------------- None Robot Schematics ------------------ None Fabricated ------------ Nothing Alien Tech Used ----------------- None Achievements -------------- Curiosity Killed The Cat Challenges ------------ None Game ------ Seed RegenerativeMatterPendant Manual? 0 Play Time 00:27:46 Cumulative 56.0 hours Start 2025.03.07 @ 19:49:52 End 2025.03.07 @ 20:10:51 Sessions 0 Manual Loads 0 Difficulty Rogue Special Mode None Game No. 63 Rogue 63 Adventurer 0 Explorer 0 Win Type - Total 0 Types 0/0/0/0/0/0/0/0/0 Lore% 34 Gallery% 42 Achievement% 35 Wizard Run 0 Options --------- Layout 0 ASCII 0 Keyboard 1 Movement Numpad Keybinds 0 Fullscreen 1 Font 18/SmallcapsGlow Map View 76x50 Zoom Use 4% Tactical HUD 1 Map Filters NONE Filters NONE Steam 1 RUN: 71a664f8-886e-4d31-8068-4fb8d9b3b8a7